fUST/lending_fUST_20241027
["ID","MTS","AMOUNT","RATE_DAILY","PERIOD"]
[340894204,1730035844818,-687.87,0.00027397,30]
[340894205,1730035844828,-500.0,0.00027397,30]
[340894206,1730035844838,-321.01733596,0.00027397,30]
[340894207,1730035844849,-516.7,0.00027397,30]
[340894208,1730035844860,-264.838393,0.00027397,7]
[340894209,1730035844871,-264.838393,0.00027397,7]
[340894210,1730035844881,-264.838393,0.00027397,7]
[340894211,1730035844891,-264.838393,0.00027397,7]
[340894212,1730035844902,-264.838393,0.00027397,7]
[340894213,1730035844913,-500.0,0.00027397,30]
[340894214,1730035844923,-264.838393,0.00027397,7]
[340894215,1730035844933,-264.838393,0.00027397,7]
[340894216,1730035844945,-264.838393,0.00027397,7]
[340894217,1730035844955,-264.838393,0.00027397,7]
[340894218,1730035844964,-500.0,0.00027397,30]
[340894219,1730035844974,-264.838393,0.00027397,7]
[340894220,1730035844984,-264.838393,0.00027397,7]
[340894221,1730035844993,-607.66,0.00027397,30]
[340894222,1730035845004,-264.838393,0.00027397,7]
[340894223,1730035845014,-264.838393,0.00027397,7]
[340894224,1730035845024,-264.838393,0.00027397,7]
[340894225,1730035845034,-264.838393,0.00027397,7]
[340894226,1730035845044,-264.838402,0.00027397,7]
[340894227,1730035845053,-500.0,0.00027397,30]
[340894228,1730035845062,-500.0,0.00027397,30]
[340894229,1730035845072,-568.1040556,0.00027397,30]
[340894230,1730035845082,-151.0,0.00027397,7]
[340894231,1730035845092,-500.0,0.00027397,30]
[340894232,1730035845102,-935.73,0.00027397,30]
[340894233,1730035845113,-500.0,0.00027397,7]
[340894234,1730035845123,-882.0,0.00027397,30]
[340894235,1730035845134,-967.39,0.00027397,30]
[340894236,1730035845144,-500.0,0.00027397,30]
[340894237,1730035845154,-500.0,0.00027397,30]
[340894238,1730035845164,-500.0,0.00027397,30]
[340894239,1730035845174,-151.0,0.00027397,30]
[340894240,1730035845185,-500.0,0.00027397,30]
[340894241,1730035845200,-910.84,0.00027397,30]
[340894242,1730035845209,-500.0,0.00027397,30]
[340894243,1730035845219,-652.17,0.00027397,30]
[340894244,1730035845229,-500.0,0.00027397,30]
[340894245,1730035845239,-500.0,0.00027397,30]
[340894246,1730035845249,-151.0,0.00027397,7]
[340894247,1730035845259,-151.0,0.00027397,7]
[340894248,1730035845269,-151.0,0.00027397,7]
[340894249,1730035845278,-289.214218,0.00027397,7]
[340894250,1730035845288,-500.0,0.00027397,30]
[340894251,1730035845297,-1012.16,0.00027397,30]
[340894252,1730035845307,-1729.46,0.00027397,30]
[340894253,1730035845317,-563.58222409,0.00027397,30]
[340894254,1730035845327,-822.69,0.00027397,30]
[340894255,1730035845337,-500.0,0.00027397,30]
[340894256,1730035845347,-1601.49,0.00027397,30]
[340894257,1730035845357,-598.77983415,0.00027397,30]
[340894258,1730035845367,-659.85,0.00027397,30]
[340894259,1730035845378,-1111.04,0.00027397,30]
[340894260,1730035845390,-500.0,0.00027397,30]
[340894261,1730035845399,-500.0,0.00027397,30]
[340894262,1730035845409,-523.610075,0.00027397,7]
[340894263,1730035845418,-523.610075,0.00027397,7]
[340894264,1730035845427,-523.610075,0.00027397,7]
[340894265,1730035845437,-523.610075,0.00027397,7]
[340894266,1730035845447,-523.610075,0.00027397,7]
[340894267,1730035845458,-523.610075,0.00027397,7]
[340894268,1730035845469,-500.0,0.00027397,30]
[340894269,1730035845480,-523.610075,0.00027397,7]
[340894270,1730035845491,-523.610075,0.00027397,7]
[340894271,1730035845501,-1325.35,0.00027397,30]
[340894272,1730035845513,-1417.68,0.00027397,30]
[340894273,1730035845523,-523.610075,0.00027397,7]
[340894274,1730035845534,-523.610075,0.00027397,7]
[340894275,1730035845545,-523.610075,0.00027397,7]
[340894276,1730035845556,-500.0,0.00027397,30]
[340894277,1730035845566,-523.610075,0.00027397,7]
[340894278,1730035845576,-523.610075,0.00027397,7]
[340894279,1730035845586,-151.0,0.00027397,7]
[340894280,1730035845596,-677.74,0.00027397,30]
[340894281,1730035845606,-523.610075,0.00027397,7]
[340894282,1730035845616,-151.0,0.00027397,7]
[340894283,1730035845626,-523.610075,0.00027397,7]
[340894284,1730035845635,-151.0,0.00027397,7]
[340894285,1730035845645,-523.610077,0.00027397,7]
[340894286,1730035845654,-151.0,0.00027397,7]
[340894287,1730035845664,-151.0,0.00027397,7]
[340894288,1730035845674,-500.0,0.00027397,30]
[340894289,1730035845684,-151.0,0.00027397,7]
[340894290,1730035845696,-151.0,0.00027397,7]
[340894291,1730035845706,-151.0,0.00027397,7]
[340894292,1730035845716,-500.0,0.00027397,30]
[340894293,1730035845726,-500.0,0.00027397,30]
[340894294,1730035845735,-500.0,0.00027397,30]
[340894295,1730035845746,-500.0,0.00027397,30]
[340894296,1730035845756,-528.9,0.00027397,30]
[340894297,1730035845766,-500.0,0.00027397,30]
[340894298,1730035845775,-500.0,0.00027397,30]
[340894299,1730035845785,-500.0,0.00027397,30]
[340894300,1730035845796,-500.0,0.00027397,30]
[340894301,1730035845806,-500.0,0.00027397,30]
[340894302,1730035845815,-177.84419225,0.00027397,30]
[340894303,1730035845824,-1033.53,0.00027397,30]
[340894304,1730035845834,-500.0,0.00027397,30]
[340894305,1730035845843,-500.0,0.00027397,30]
[340894306,1730035845853,-500.0,0.00027397,30]
[340894307,1730035845862,-500.0,0.00027397,30]
[340894308,1730035845872,-500.0,0.00027397,30]
[340894309,1730035845882,-549.30380111,0.00027397,30]
[340894310,1730035845891,-572.21,0.00027397,30]
[340894311,1730035845901,-1847.42,0.00027397,30]
[340894312,1730035845910,-500.0,0.00027397,30]
[340894313,1730035845920,-403.134543,0.00027397,7]
[340894314,1730035845931,-403.134543,0.00027397,7]
[340894315,1730035845941,-403.134543,0.00027397,7]
[340894316,1730035845950,-403.134543,0.00027397,7]
[340894317,1730035845960,-403.134543,0.00027397,7]
[340894318,1730035845969,-403.134543,0.00027397,7]
[340894319,1730035845979,-500.0,0.00027397,30]
[340894320,1730035845989,-403.134543,0.00027397,7]
[340894321,1730035845999,-403.134543,0.00027397,7]
[340894322,1730035846009,-3057.94,0.00027397,30]
[340894323,1730035846019,-403.134543,0.00027397,7]
[340894324,1730035846028,-403.134543,0.00027397,7]
[340894325,1730035846038,-403.134543,0.00027397,7]
[340894326,1730035846048,-403.134543,0.00027397,7]
[340894327,1730035846057,-500.0,0.00027397,30]
[340894328,1730035846067,-500.0,0.00027397,30]
[340894329,1730035846078,-500.0,0.00027397,30]
[340894330,1730035846087,-403.134543,0.00027397,7]
[340894331,1730035846097,-403.134543,0.00027397,7]
[340894332,1730035846107,-403.134543,0.00027397,7]
[340894333,1730035846117,-403.134545,0.00027397,7]
[340894334,1730035846126,-500.0,0.00027397,30]
[340894335,1730035846137,-1164.06,0.00027397,30]
[340894336,1730035846146,-935.65,0.00027397,30]
[340894337,1730035846156,-752.02,0.00027397,30]
[340894338,1730035846166,-500.0,0.00027397,30]
[340894339,1730035846176,-861.2,0.00027397,30]
[340894340,1730035846185,-500.0,0.00027397,30]
[340894341,1730035846197,-163.5,0.00027397,30]
[340894342,1730035846207,-214.567508,0.00027397,7]
[340894343,1730035846217,-214.567508,0.00027397,7]
[340894344,1730035846227,-214.567508,0.00027397,7]
[340894346,1730035846238,-214.567508,0.00027397,7]
[340894348,1730035846247,-151.0,0.00027397,30]
[340894349,1730035846257,-214.567508,0.00027397,7]
[340894350,1730035846267,-214.567508,0.00027397,7]
[340894351,1730035846276,-464.28120767,0.00027397,30]
[340894352,1730035846285,-214.567508,0.00027397,7]
[340894353,1730035846295,-214.567508,0.00027397,7]
[340894354,1730035846304,-500.0,0.00027397,30]
[340894355,1730035846314,-199.106635,0.00027397,7]
[340894356,1730035846324,-151.0,0.00027397,30]
[340894357,1730035846334,-214.567508,0.00027397,7]
[340894358,1730035846343,-214.567508,0.00027397,7]
[340894359,1730035846353,-199.106635,0.00027397,7]
[340894360,1730035846363,-199.106635,0.00027397,7]
[340894361,1730035846372,-151.0,0.00027397,30]
[340894362,1730035846382,-214.567508,0.00027397,7]
[340894363,1730035846392,-199.106635,0.00027397,7]
[340894365,1730035846403,-214.567508,0.00027397,7]
[340894366,1730035846415,-199.106635,0.00027397,7]
[340894367,1730035846425,-214.567508,0.00027397,7]
[340894368,1730035846435,-199.106635,0.00027397,7]
[340894369,1730035846447,-214.567508,0.00027397,7]
[340894370,1730035846457,-199.106635,0.00027397,7]
[340894371,1730035846466,-154.86738117,0.00027397,30]
[340894372,1730035846476,-214.567508,0.00027397,7]
[340894373,1730035846486,-500.0,0.00027397,30]
[340894374,1730035846496,-199.106635,0.00027397,7]
[340894375,1730035846505,-214.56751,0.00027397,7]
[340894377,1730035846515,-199.106635,0.00027397,7]
[340894378,1730035846526,-199.106635,0.00027397,7]
[340894379,1730035846537,-500.0,0.00027397,30]
[340894380,1730035846546,-199.106635,0.00027397,7]
[340894382,1730035846557,-199.106635,0.00027397,7]
[340894384,1730035846567,-500.0,0.00027397,30]
[340894385,1730035846576,-199.106635,0.00027397,7]
[340894386,1730035846586,-199.106635,0.00027397,7]
[340894387,1730035846596,-199.106635,0.00027397,7]
[340894388,1730035846606,-199.106644,0.00027397,7]
[340894390,1730035846616,-500.0,0.00027397,30]
[340894391,1730035846625,-500.0,0.00027397,30]
[340894392,1730035846635,-762.9,0.00027397,30]
[340894393,1730035846650,-500.0,0.00027397,30]
[340894394,1730035846660,-500.0,0.00027397,30]
[340894395,1730035846670,-500.0,0.00027397,30]
[340894396,1730035846680,-1905.69,0.00027397,30]
[340894397,1730035846691,-500.18021709,0.00027397,30]
[340894398,1730035846703,-421.18795752,0.00027397,28]
[340894399,1730035846713,-500.0,0.00027397,30]
[340894400,1730035846725,-500.0,0.00027397,30]
[340894401,1730035846735,-500.0,0.00027397,30]
[340894402,1730035846744,-500.0,0.00027397,30]
[340894403,1730035846754,-188.0,0.00027397,2]
[340894404,1730035846764,-500.0,0.00027397,30]
[340894405,1730035846775,-500.0,0.00027397,30]
[340894406,1730035846785,-500.0,0.00027397,30]
[340894407,1730035846794,-500.0,0.00027397,30]
[340894408,1730035846805,-500.0,0.00027397,30]
[340894409,1730035846815,-500.0,0.00027397,30]
[340894410,1730035846826,-964.67,0.00027397,30]
[340894411,1730035846837,-500.0,0.00027397,30]
[340894412,1730035846847,-2038.52,0.00027397,30]
[340894413,1730035846857,-500.0,0.00027397,30]
[340894414,1730035846867,-500.0,0.00027397,30]
[340894415,1730035846877,-2051.38896433,0.00027397,30]
[340894416,1730035847092,-365.35966481,0.00027397,30]
[340894417,1730035847307,-680.30150437,0.00027386,2]
[340894418,1730035847320,-153.29802843,0.00027386,2]
[340894419,1730035847330,-2237.50137086,0.00027397,30]
[340894420,1730035847340,-703.32,0.00027397,30]
[340894421,1730035847351,-500.0,0.00027397,30]
[340894422,1730035847362,-151.0,0.00027397,7]
[340894423,1730035847372,-151.0,0.00027397,7]
[340894424,1730035847382,-151.0,0.00027397,7]
[340894425,1730035847392,-151.0,0.00027397,7]
[340894426,1730035847401,-151.0,0.00027397,7]
[340894427,1730035847411,-1408.55,0.00027397,30]
[340894428,1730035847420,-265.10294,0.00027397,7]
[340894429,1730035847429,-643.87,0.00027397,30]
[340894430,1730035847439,-10371.66,0.00027397,30]
[340894431,1730035847451,-500.0,0.00027397,30]
[340894432,1730035847461,-500.0,0.00027397,30]
[340894433,1730035847470,-500.0,0.00027397,30]
[340894434,1730035847480,-500.0,0.00027397,30]
[340894435,1730035847489,-151.0,0.00027397,7]
[340894436,1730035847499,-1167.21,0.00027397,30]
[340894437,1730035847509,-151.0,0.00027397,7]
[340894438,1730035847519,-151.0,0.00027397,7]
[340894439,1730035847529,-151.0,0.00027397,7]
[340894440,1730035847538,-151.0,0.00027397,7]
[340894441,1730035847547,-151.0,0.00027397,7]
[340894442,1730035847557,-500.0,0.00027397,30]
[340894443,1730035847567,-279.997042,0.00027397,7]
[340894444,1730035847576,-506.66486145,0.00027397,30]
[340894445,1730035847586,-549.65410877,0.00027397,30]
[340894446,1730035847596,-500.0,0.00027397,30]
[340894447,1730035847606,-500.0,0.00027397,30]
[340894448,1730035847615,-500.0,0.00027397,30]
[340894449,1730035847625,-280.83164197,0.00027397,30]
[340894450,1730035847634,-3389.88,0.00027397,30]
[340894451,1730035847648,-500.0,0.00027397,30]
[340894452,1730035847658,-2239.56,0.00027397,30]
[340894453,1730035847667,-500.0,0.00027397,30]
[340894454,1730035847678,-500.0,0.00027397,30]
[340894455,1730035847688,-6925.99,0.00027397,30]
[340894456,1730035847701,-500.0,0.00027397,30]
[340894457,1730035847711,-1716.41,0.00027397,30]
[340894458,1730035847721,-838.82,0.00027397,30]
[340894459,1730035847730,-500.0,0.00027397,30]
[340894460,1730035847740,-1956.64,0.00027397,30]
[340894461,1730035847749,-240.420742,0.00027397,7]
[340894462,1730035847759,-240.420742,0.00027397,7]
[340894463,1730035847768,-240.420742,0.00027397,7]
[340894464,1730035847778,-612.16,0.00027397,30]
[340894465,1730035847788,-240.420742,0.00027397,7]
[340894466,1730035847797,-1333.2,0.00027397,30]
[340894467,1730035847807,-240.420742,0.00027397,7]
[340894468,1730035847816,-1744.69,0.00027397,30]
[340894469,1730035847826,-240.420742,0.00027397,7]
[340894470,1730035847836,-498.57097569,0.00027397,30]
[340894471,1730035847845,-240.420742,0.00027397,7]
[340894472,1730035847855,-500.0,0.00027397,30]
[340894473,1730035847867,-240.420742,0.00027397,7]
[340894474,1730035847877,-240.420742,0.00027397,7]
[340894475,1730035847887,-240.420742,0.00027397,7]
[340894476,1730035847897,-240.420742,0.00027397,7]
[340894477,1730035847906,-240.420742,0.00027397,7]
[340894478,1730035847916,-500.0,0.00027397,30]
[340894479,1730035847926,-240.420742,0.00027397,7]
[340894480,1730035847936,-540.19,0.00027397,30]
[340894481,1730035847948,-240.420742,0.00027397,7]
[340894482,1730035847958,-240.420742,0.00027397,7]
[340894483,1730035847968,-240.420734,0.00027397,7]
[340894484,1730035847978,-500.0,0.00027397,30]
[340894485,1730035847988,-500.0,0.00027397,30]
[340894486,1730035847998,-556.3737682,0.00027397,30]
[340894487,1730035848008,-1738.37,0.00027397,30]
[340894488,1730035848018,-500.0,0.00027397,30]
[340894489,1730035848028,-503.20444535,0.00027397,30]
[340894490,1730035848038,-2383.92,0.00027397,30]
[340894491,1730035848048,-2191.81,0.00027397,30]
[340894492,1730035848058,-500.0,0.00027397,30]
[340894493,1730035848068,-500.0,0.00027397,30]
[340894494,1730035848078,-500.0,0.00027397,30]
[340894495,1730035848088,-642.39,0.00027397,30]
[340894496,1730035848098,-1051.0,0.00027397,30]
[340894497,1730035848108,-954.85,0.00027397,30]
[340894498,1730035848118,-500.0,0.00027397,30]
[340894499,1730035848128,-1010.02,0.00027397,30]
[340894500,1730035848138,-500.0,0.00027397,30]
[340894501,1730035848321,-500.0,0.00027397,30]
[340894502,1730035848330,-500.0,0.00027397,30]
[340894503,1730035848341,-151.0,0.00027397,7]
[340894504,1730035848350,-151.0,0.00027397,7]
[340894505,1730035848360,-202.591345,0.00027397,30]
[340894506,1730035848370,-151.0,0.00027397,7]
[340894507,1730035848381,-500.0,0.00027397,30]
[340894508,1730035848392,-151.0,0.00027397,7]
[340894509,1730035848402,-151.0,0.00027397,7]
[340894510,1730035848411,-151.0,0.00027397,7]
[340894511,1730035848421,-151.0,0.00027397,7]
[340894512,1730035848431,-153.5124,0.00027397,7]
[340894513,1730035848441,-500.0,0.00027397,30]
[340894514,1730035848454,-902.14,0.00027397,30]
[340894515,1730035848464,-1265.05,0.00027397,30]
[340894516,1730035848473,-500.0,0.00027397,30]
[340894517,1730035848484,-500.0,0.00027397,30]
[340894518,1730035848494,-780.56,0.00027397,30]
[340894519,1730035848504,-5654.19,0.00027397,30]
[340894520,1730035848515,-1731.34,0.00027397,30]
[340894521,1730035848525,-151.0,0.00027397,7]
[340894522,1730035848534,-163.23582,0.00027397,7]
[340894523,1730035848544,-454.467813,0.00027397,7]
[340894524,1730035848553,-595.57880736,0.00027397,30]
[340894525,1730035848563,-454.467813,0.00027397,7]
[340894526,1730035848573,-454.467813,0.00027397,7]
[340894527,1730035848582,-454.467813,0.00027397,7]
[340894528,1730035848592,-454.467813,0.00027397,7]
[340894529,1730035848602,-454.467813,0.00027397,7]
[340894530,1730035848611,-454.467813,0.00027397,7]
[340894531,1730035848621,-454.467813,0.00027397,7]
[340894532,1730035848630,-454.467813,0.00027397,7]
[340894533,1730035848639,-454.467813,0.00027397,7]
[340894534,1730035848653,-500.0,0.00027397,30]
[340894535,1730035848662,-500.0,0.00027397,30]
[340894536,1730035848671,-454.467813,0.00027397,7]
[340894537,1730035848680,-454.467813,0.00027397,7]
[340894538,1730035848690,-454.467813,0.00027397,7]
[340894539,1730035848703,-1167.28,0.00027397,30]
[340894540,1730035848712,-454.467813,0.00027397,7]
[340894541,1730035848723,-454.467813,0.00027397,7]
[340894542,1730035848733,-454.467804,0.00027397,7]
[340894543,1730035848743,-3103.64,0.00027397,30]
[340894544,1730035848753,-500.0,0.00027397,30]
[340894545,1730035848762,-151.0,0.00027397,7]
[340894546,1730035848771,-151.0,0.00027397,7]
[340894547,1730035848780,-151.0,0.00027397,7]
[340894548,1730035848790,-1698.76,0.00027397,30]
[340894549,1730035848800,-153.340352,0.00027397,7]
[340894550,1730035848809,-2505.32,0.00027397,30]
[340894551,1730035848818,-500.0,0.00027397,30]
[340894552,1730035848828,-869.7,0.00027397,30]
[340894553,1730035848837,-2284.1,0.00027397,30]
[340894554,1730035848847,-500.0,0.00027397,30]
[340894555,1730035848856,-500.0,0.00027397,30]
[340894556,1730035848866,-3255.05,0.00027397,30]
[340894557,1730035848875,-396.72019535,0.00027397,30]
[340894558,1730035848885,-580.99515044,0.00027397,30]
[340894559,1730035848895,-928.88,0.00027397,30]
[340894560,1730035848904,-618.52,0.00027397,30]
[340894561,1730035848914,-500.0,0.00027397,30]
[340894562,1730035848924,-151.0,0.00027397,7]
[340894563,1730035848933,-982.09,0.00027397,14]
[340894564,1730035848945,-1161.93,0.00027397,30]
[340894565,1730035848954,-1171.66,0.00027397,30]
[340894566,1730035848965,-500.0,0.00027397,30]
[340894567,1730035848975,-500.0,0.00027397,30]
[340894568,1730035848984,-151.0,0.00027397,7]
[340894569,1730035848994,-300.255381,0.00027397,7]
[340894570,1730035849004,-232.52970241,0.00027397,30]
[340894571,1730035849013,-151.0,0.00027397,7]
[340894572,1730035849023,-151.0,0.00027397,7]
[340894573,1730035849032,-151.0,0.00027397,7]
[340894574,1730035849041,-656.09,0.00027397,30]
[340894575,1730035849051,-151.0,0.00027397,7]
[340894576,1730035849060,-500.0,0.00027397,30]
[340894577,1730035849069,-500.0,0.00027397,30]
[340894578,1730035849078,-151.0,0.00027397,7]
[340894579,1730035849089,-500.0,0.00027397,30]
[340894580,1730035849098,-151.0,0.00027397,7]
[340894581,1730035849107,-151.0,0.00027397,7]
[340894582,1730035849117,-151.0,0.00027397,7]
[340894583,1730035849126,-151.0,0.00027397,7]
[340894584,1730035849135,-151.0,0.00027397,7]
[340894585,1730035849145,-151.0,0.00027397,7]
[340894586,1730035849154,-151.0,0.00027397,7]
[340894587,1730035849163,-2512.29,0.00027397,30]
[340894588,1730035849172,-151.0,0.00027397,7]
[340894589,1730035849182,-156.894592,0.00027397,7]
[340894590,1730035849191,-151.0,0.00027397,30]
[340894591,1730035849202,-500.0,0.00027397,30]
[340894592,1730035849212,-500.0,0.00027397,30]
[340894593,1730035849221,-1525.2,0.00027397,30]
[340894594,1730035849231,-200.0,0.00027397,30]
[340894595,1730035849241,-500.0,0.00027397,30]
[340894596,1730035849251,-1218.19,0.00027397,30]
[340894597,1730035849261,-818.59,0.00027397,30]
[340894598,1730035849270,-581.12283527,0.00027397,30]
[340894599,1730035849280,-500.0,0.00027397,30]
[340894600,1730035849290,-2655.58,0.00027397,30]
[340894601,1730035849301,-789.66,0.00027397,30]
[340894602,1730035849310,-500.0,0.00027397,2]
[340894603,1730035849321,-556.55695908,0.00027397,30]
[340894604,1730035849330,-500.0,0.00027397,30]
[340894605,1730035849341,-500.0,0.00027397,30]
[340894606,1730035849351,-558.71251581,0.00027397,30]
[340894607,1730035849360,-500.0,0.00027397,30]
[340894608,1730035849370,-500.0,0.00027397,30]
[340894609,1730035849379,-350.41621312,0.00027397,30]
[340894610,1730035849389,-1400.7,0.00027397,30]
[340894611,1730035849399,-151.0,0.00027397,7]
[340894612,1730035849409,-2008.03,0.00027397,30]
[340894613,1730035849418,-1598.83,0.00027397,30]
[340894614,1730035849428,-151.0,0.00027397,7]
[340894615,1730035849437,-151.0,0.00027397,7]
[340894616,1730035849449,-151.0,0.00027397,7]
[340894617,1730035849459,-151.0,0.00027397,7]
[340894618,1730035849468,-417.24575362,0.00027397,30]
[340894619,1730035849478,-151.0,0.00027397,7]
[340894620,1730035849488,-151.0,0.00027397,7]
[340894621,1730035849498,-34714.32,0.00027397,30]
[340894622,1730035849508,-500.0,0.00027397,30]
[340894623,1730035849518,-2080.66,0.00027397,30]
[340894624,1730035849528,-596.46415596,0.00027397,30]
[340894625,1730035849538,-500.0,0.00027397,30]
[340894626,1730035849548,-151.0,0.00027397,7]
[340894627,1730035849558,-151.0,0.00027397,7]
[340894628,1730035849568,-500.0,0.00027397,30]
[340894629,1730035849578,-151.0,0.00027397,7]
[340894630,1730035849587,-151.0,0.00027397,7]
[340894631,1730035849597,-7494.75,0.00027397,21]
[340894632,1730035849607,-500.0,0.00027397,30]
[340894633,1730035849616,-500.0,0.00027397,30]
[340894634,1730035849626,-945.4,0.00027397,30]
[340894635,1730035849636,-3000.0,0.00027397,90]
[340894636,1730035849648,-856.67163,0.00027397,90]
[340894637,1730035849658,-150.112233,0.000274,5]
[340894638,1730035849667,-150.112233,0.000274,7]
[340894639,1730035849677,-150.112233,0.000274,5]
[340894640,1730035849687,-150.112233,0.000274,6]
[340894641,1730035849698,-150.112233,0.000274,6]
[340894642,1730035849709,-150.112233,0.000274,7]
[340894643,1730035849719,-150.112233,0.000274,8]
[340894644,1730035849729,-150.112233,0.000274,6]
[340894645,1730035849739,-150.112233,0.000274,9]
[340894646,1730035849750,-150.112233,0.000274,10]
[340894647,1730035849760,-150.112233,0.000274,8]
[340894648,1730035849771,-150.112233,0.000275,8]
[340894649,1730035849781,-150.112233,0.000275,5]
[340894650,1730035849791,-150.112233,0.000275,6]
[340894651,1730035849802,-150.062,0.0002753,2]
[340894652,1730035849811,-150.112233,0.000276,7]
[340894653,1730035849823,-150.112233,0.000276,5]
[340894654,1730035849832,-150.112233,0.000276,8]
[340894655,1730035849843,-150.112233,0.000276,5]
[340894656,1730035849853,-150.112237,0.000276,8]
[340894657,1730035849863,-150.112233,0.000276,7]
[340894658,1730035849873,-150.112233,0.000276,7]
[340894659,1730035849883,-150.112233,0.000276,8]
[340894660,1730035849893,-150.112233,0.000276,9]
[340894661,1730035849903,-10661.7624017,0.00027661,4]
[340894662,1730035849912,-500.0,0.00027671,30]
[340894663,1730035849923,-500.0,0.00027671,30]
[340894664,1730035849933,-258.19283191,0.00027671,30]
[340894665,1730035849945,-552.45708815,0.00027671,30]
[340894666,1730035849956,-558.38,0.00027671,30]
[340894667,1730035849967,-1035.71,0.00027671,30]
[340894668,1730035849977,-500.0,0.00027671,30]
[340894669,1730035849989,-1618.08,0.00027671,30]
[340894670,1730035849998,-500.0,0.00027671,30]
[340894671,1730035850008,-1338.17,0.00027671,30]
[340894672,1730035850018,-381.13178954,0.00027671,30]
[340894673,1730035850029,-500.0,0.00027671,30]
[340894674,1730035850040,-500.0,0.00027671,30]
[340894675,1730035850051,-246.09,0.00027671,7]
[340894676,1730035850062,-774.47,0.00027671,30]
[340894677,1730035850073,-151.8026923,0.00027671,30]
[340894678,1730035850083,-807.09,0.00027671,30]
[340894679,1730035850095,-609.33702907,0.00027671,30]
[340894680,1730035850105,-500.0,0.00027671,30]
[340894681,1730035850117,-500.0,0.00027671,30]
[340894682,1730035850127,-500.0,0.00027671,30]
[340894683,1730035850138,-500.0,0.00027671,30]
[340894684,1730035850148,-636.58,0.00027671,30]
[340894685,1730035850157,-500.0,0.00027671,30]
[340894686,1730035850168,-500.0,0.00027671,30]
[340894687,1730035850177,-500.0,0.00027671,30]
[340894688,1730035850187,-500.0,0.00027671,30]
[340894689,1730035850198,-1204.79,0.00027671,30]
[340894690,1730035850209,-500.0,0.00027671,30]
[340894691,1730035850219,-500.0,0.00027671,30]
[340894692,1730035850230,-607.66233643,0.00027671,30]
[340894693,1730035850240,-500.0,0.00027671,30]
[340894694,1730035850250,-588.56190039,0.00027671,30]
[340894695,1730035850260,-550.80378685,0.00027671,30]
[340894696,1730035850271,-500.0,0.00027671,30]
[340894697,1730035850281,-500.0,0.00027671,30]
[340894698,1730035850291,-500.0,0.00027671,30]
[340894699,1730035850301,-500.0,0.00027671,30]
[340894700,1730035850311,-500.0,0.00027671,30]
[340894701,1730035850320,-500.0,0.00027671,30]
[340894702,1730035850329,-500.0,0.00027671,30]
[340894703,1730035850338,-500.0,0.00027671,30]
[340894704,1730035850347,-704.86,0.00027671,30]
[340894705,1730035850357,-500.0,0.00027671,30]
[340894706,1730035850366,-500.0,0.00027671,30]
[340894707,1730035850376,-500.0,0.00027671,30]
[340894708,1730035850385,-495.38134716,0.00027671,30]
[340894709,1730035850394,-1469.23,0.00027671,30]
[340894710,1730035850404,-500.0,0.00027671,30]